fUSD/lending_fUSD_20251113
["ID","MTS","AMOUNT","RATE_DAILY","PERIOD"]
[393802762,1763004731025,270.05421002,0.00040648,30]
[393802763,1763004741043,414.0,0.00040648,30]
[393802764,1763005038217,317.42962522,0.00040648,30]
[393802765,1763005092571,1002.0,0.00040648,30]
[393802766,1763005374437,200.0,0.000169,2]
[393802767,1763005475448,2153.57,9.84e-05,2]
[393802768,1763005475664,2153.57,0.00010338,2]
[393802769,1763005475872,2153.57,0.00010836,2]
[393802770,1763005476110,2153.57,0.00011333,2]
[393802771,1763005476516,1385.73,0.00011831,2]
[393802772,1763005476540,767.84,0.00011831,2]
[393802773,1763005476947,2153.57,0.00012329,2]
[393802774,1763005476997,2153.57,0.00012826,2]
[393802775,1763005477175,2153.57,0.00013324,2]
[393802776,1763005477366,2153.57,0.00013821,2]
[393802777,1763005477589,617.89,0.00014319,2]
[393802778,1763005477613,1535.68,0.00014319,2]
[393802779,1763005477794,2153.57,0.00014817,2]
[393802780,1763005477986,2153.57,0.00015314,2]
[393802781,1763005478189,2153.57,0.00015812,2]
[393802782,1763005478400,2003.62,0.00016309,2]
[393802783,1763005478424,149.95,0.00016309,2]
[393802784,1763005478612,2153.57,0.00016807,2]
[393802786,1763005551784,4850.87,0.00016,2]
[393802787,1763005626008,2100.0,0.0004065,120]
[393802788,1763005665216,311.4,0.00025,120]
[393802789,1763005665586,311.4,0.00027272,120]
[393802792,1763005803558,5545.773689,0.0004065,35]
[393802809,1763005831917,-250.0,0.00017,2]
[393802810,1763005831927,-2152.49,0.00017011,2]
[393802811,1763005831936,-2153.57,0.00017305,2]
[393802812,1763005831946,-185.41980406,0.0001764,2]
[393802813,1763005831955,-1125.51,0.0001764,2]
[393802814,1763005831965,-300.0,0.000177,6]
[393802815,1763005831974,-1040.0,0.00017799,2]
[393802816,1763005831983,-300.0,0.000178,2]
[393802817,1763005831992,-700.0,0.000178,6]
[393802818,1763005832002,-2153.57,0.00017802,2]
[393802819,1763005832012,-169.00794126,0.000179,2]
[393802820,1763005832021,-175.44973908,0.000179,2]
[393802821,1763005832030,-200.12243334,0.000179,2]
[393802822,1763005832039,-1000.0,0.000179,6]
[393802823,1763005832049,-286.23088563,0.000179,2]
[393802824,1763005832059,-44286.50694024,0.000179,2]
[393802825,1763005832069,-213.32418948,0.000179,2]
[393802826,1763005832078,-9561.73711164,0.000179,2]
[393802827,1763005832088,-150.0,0.00017909,2]
[393802828,1763005832099,-500.0,0.00017973,2]
[393802829,1763005832109,-500.0,0.00017973,2]
[393802830,1763005832118,-501.61257175,0.00017973,2]
[393802831,1763005832127,-151.0,0.00017989,2]
[393802832,1763005832137,-151.0,0.00017989,2]
[393802833,1763005832147,-151.0,0.00017989,2]
[393802834,1763005832156,-151.0,0.00017989,2]
[393802836,1763005832348,-151.0,0.00017989,2]
[393802837,1763005832358,-151.0,0.00017989,2]
[393802838,1763005832368,-251.11052695,0.0001799,2]
[393802840,1763005832379,-251.27,0.0001799,2]
[393802842,1763005832389,-251.27,0.0001799,2]
[393802843,1763005832398,-251.27,0.0001799,2]
[393802844,1763005832409,-251.27,0.0001799,2]
[393802845,1763005832418,-251.27,0.0001799,2]
[393802846,1763005832428,-533.91,0.00017999,2]
[393802847,1763005832438,-500.0,0.00017999,2]
[393802848,1763005832447,-500.0,0.00017999,2]
[393802849,1763005832456,-500.0,0.00017999,2]
[393802850,1763005832466,-500.0,0.00017999,2]
[393802851,1763005832475,-500.0,0.00017999,2]
[393802852,1763005832484,-577.24829632,0.00017999,2]
[393802853,1763005832493,-500.0,0.00017999,2]
[393802854,1763005832503,-500.0,0.00017999,2]
[393802855,1763005832512,-500.0,0.00017999,2]
[393802856,1763005832521,-512.41024219,0.00017999,2]
[393802857,1763005832531,-500.0,0.00017999,2]
[393802858,1763005832540,-500.0,0.00017999,2]
[393802859,1763005832549,-500.0,0.00017999,2]
[393802860,1763005832559,-500.0,0.00017999,2]
[393802861,1763005832568,-500.0,0.00017999,2]
[393802862,1763005832577,-244.68420674,0.00017999,2]
[393802863,1763005832586,-500.0,0.00017999,2]
[393802864,1763005832598,-500.0,0.00017999,2]
[393802865,1763005832608,-500.0,0.00017999,2]
[393802866,1763005832617,-514.48012791,0.00017999,2]
[393802867,1763005832627,-511.02294614,0.00017999,2]
[393802868,1763005832636,-500.0,0.00017999,2]
[393802869,1763005832646,-500.0,0.00017999,2]
[393802870,1763005832655,-500.0,0.00017999,2]
[393802871,1763005832665,-409.68146453,0.00017999,2]
[393802872,1763005832674,-500.0,0.00017999,2]
[393802873,1763005832683,-500.0,0.00017999,2]
[393802874,1763005832692,-500.0,0.00017999,2]
[393802875,1763005832702,-500.0,0.00017999,2]
[393802876,1763005832712,-500.0,0.00017999,2]
[393802877,1763005832721,-500.0,0.00017999,2]
[393802878,1763005832730,-500.0,0.00017999,2]
[393802879,1763005832739,-500.0,0.00017999,2]
[393802880,1763005832749,-500.0,0.00017999,2]
[393802881,1763005832758,-545.74481747,0.00017999,2]
[393802882,1763005832767,-500.0,0.00017999,2]
[393802883,1763005832777,-500.0,0.00017999,2]
[393802884,1763005832786,-500.0,0.00017999,2]
[393802885,1763005832795,-500.0,0.00017999,2]
[393802886,1763005832805,-413.58916269,0.00017999,2]
[393802887,1763005832814,-510.29994233,0.00017999,2]
[393802888,1763005832823,-500.0,0.00017999,2]
[393802889,1763005832832,-500.0,0.00017999,2]
[393802890,1763005832841,-500.0,0.00017999,2]
[393802891,1763005832853,-554.12675026,0.00017999,2]
[393802892,1763005832862,-500.0,0.00017999,2]
[393802893,1763005832871,-500.0,0.00017999,2]
[393802894,1763005832880,-500.0,0.00017999,2]
[393802895,1763005832890,-500.0,0.00017999,2]
[393802896,1763005832899,-500.0,0.00017999,2]
[393802897,1763005832908,-500.0,0.00017999,2]
[393802898,1763005832917,-500.0,0.00017999,2]
[393802899,1763005832927,-197.16263856,0.00017999,2]
[393802900,1763005832935,-500.0,0.00017999,2]
[393802901,1763005832945,-500.0,0.00017999,2]
[393802902,1763005832954,-500.0,0.00017999,2]
[393802903,1763005832963,-500.0,0.00017999,2]
[393802904,1763005832972,-500.0,0.00017999,2]
[393802905,1763005832982,-500.0,0.00017999,2]
[393802906,1763005832992,-500.0,0.00017999,2]
[393802907,1763005833002,-500.0,0.00017999,2]
[393802908,1763005833013,-47570.20222541,0.00018,2]
[393802909,1763005833025,-2097.54236996,0.00018,2]
[393802910,1763005833036,-777.28868131,0.00018,2]
[393802911,1763005833051,-1181.4986331,0.00018,2]
[393802912,1763005833061,-990.98217753,0.00018,2]
[393802913,1763005833072,-53723.6852124,0.00018,2]
[393802914,1763005833083,-254.160016,0.00018,2]
[393802915,1763005833151,-518.38854276,0.00018,2]
[393802921,1763005837658,-314.91993513,0.00018,2]
[393802922,1763005837711,-35508.47295108,0.00018,2]
[393802923,1763005837723,-720.245,0.00018,2]
[393802924,1763005837765,-625.89475458,0.00018,2]
[393802925,1763005837776,-3234.24970126,0.00018,2]
[393802926,1763005837834,-1811.16,0.00018,2]
[393802927,1763005837980,-749.9999998,0.00018,2]
[393802930,1763005839782,-2046.8,0.00018,2]
[393802931,1763005839795,-2054.81350068,0.00018,2]
[393802932,1763005839837,-456957.20056234,0.00018,2]
[393802933,1763005839892,-75532.1808452,0.00018,2]
[393802934,1763005839947,-750.00000005,0.00018,2]
[393802935,1763005840003,-692.05703217,0.00018,2]
[393802936,1763005840057,-1225.02997755,0.00018,2]
[393802989,1763005846368,-439.92427672,0.00018,2]
[393802997,1763005936953,205.24715273,0.0004065,120]
[393802998,1763005948068,204.62230614,0.0004065,120]
[393802999,1763006220003,1070.0,0.0003,120]
[393803000,1763006324792,300.0,0.0004065,30]
[393803001,1763006520744,-486.236175,0.00017288,2]
[393803002,1763006520781,-373.79716825,0.00017375,2]
[393803003,1763006520817,-304.0732046,0.00017388,2]
[393803004,1763006520968,-171.7869043,0.00017475,2]
[393803005,1763006555788,-2000.0,0.00017475,2]
[393803007,1763006607073,356.11395223,0.00040657,120]
[393803008,1763006635632,268.77353608,0.00040657,120]
[393803013,1763006835842,250.0,0.00016978,2]
[393803014,1763006920236,1852.42,0.00016938,2]
[393803015,1763006963580,1000.0,0.00016901,2]
[393803054,1763007031936,-534.39496866,0.00017033,2]
[393803056,1763007031947,-665.60503134,0.00017033,2]
[393803059,1763007031957,-238.00261232,0.00017033,2]
[393803062,1763007031968,-61.99738768,0.00017033,2]
[393803066,1763007031978,-295.03899952,0.00017033,2]
[393803069,1763007031989,-4.96100048,0.00017033,2]
[393803072,1763007031999,-300.0,0.00017033,2]
[393803075,1763007032009,-300.0,0.00017033,2]
[393803078,1763007032018,-310.82259044,0.00017033,2]
[393803082,1763007032033,-786.20030613,0.00017033,2]
[393803086,1763007032045,-102.97710343,0.00017033,2]
[393803089,1763007032055,-250.0,0.00017034,2]
[393803092,1763007032065,-2236.99439998,0.00017034,2]
[393803096,1763007032080,-13860.52560002,0.00017034,2]
[393803099,1763007032089,-4015.77,0.00017172,2]
[393803102,1763007032099,-501.00285995,0.000173,2]
[393803105,1763007032108,-500.68799219,0.000173,2]
[393803109,1763007032119,-2033.5630957,0.00017475,2]
[393803112,1763007032129,-999.0,0.00017475,3]
[393803115,1763007032139,-505.41,0.00017475,2]
[393803119,1763007032148,-166.66,0.00017524,2]
[393803122,1763007032158,-416.21634801,0.000178,2]
[393803125,1763007032168,-300.0,0.000178,6]
[393803128,1763007032178,-13010.78185691,0.00017825,2]
[393803131,1763007032187,-550.0,0.00017849,2]
[393803134,1763007032197,-501.65758587,0.00017873,2]
[393803137,1763007032206,-166.66,0.00017893,2]
[393803141,1763007032215,-180.11019006,0.00017897,2]
[393803144,1763007032226,-9166.10046559,0.00017899,2]
[393803147,1763007032235,-39857.85624618,0.00017899,2]
[393803150,1763007032245,-700.0,0.000179,6]
[393803153,1763007032254,-169.00794124,0.000179,2]
[393803156,1763007032263,-150.38549064,0.000179,2]
[393803161,1763007032277,-418.75557568,0.00017973,2]
[393803164,1763007032287,-549.02555383,0.00017973,2]
[393803167,1763007032296,-500.0,0.00017973,2]
[393803170,1763007032306,-500.0,0.00017973,2]
[393803173,1763007032315,-151.21943385,0.00017982,2]
[393803177,1763007032325,-151.0,0.00017989,2]
[393803180,1763007032335,-292.96228144,0.0001799,2]
[393803183,1763007032345,-268.17657363,0.00017996,2]
[393803186,1763007032354,-405.72123271,0.00017996,2]
[393803189,1763007032364,-500.0,0.00017996,2]
[393803191,1763007032374,-818.92665692,0.00017996,2]
[393803193,1763007032384,-462.02573687,0.00017996,2]
[393803223,1763007032590,-283.79186114,0.00017996,2]
[393803226,1763007032603,-818.92665692,0.00017996,2]
[393803228,1763007032613,-818.92665692,0.00017996,2]
[393803230,1763007032623,-500.0,0.00017996,2]
[393803232,1763007032633,-818.92665692,0.00017996,2]
[393803234,1763007032644,-818.92665692,0.00017996,2]
[393803236,1763007032653,-443.9986526,0.00017996,2]
[393803238,1763007032663,-818.92665692,0.00017996,2]
[393803240,1763007032672,-818.92665692,0.00017996,2]
[393803242,1763007032682,-818.92665692,0.00017996,2]
[393803244,1763007032695,-247.34363529,0.00017996,2]
[393803245,1763007032704,-818.92665692,0.00017996,2]
[393803246,1763007032714,-818.92665692,0.00017996,2]
[393803247,1763007032723,-818.92665692,0.00017996,2]
[393803248,1763007032734,-818.92665692,0.00017996,2]
[393803249,1763007032744,-818.92665692,0.00017996,2]
[393803250,1763007032753,-818.92665692,0.00017996,2]
[393803251,1763007032763,-818.92665692,0.00017996,2]
[393803252,1763007032773,-818.92665692,0.00017996,2]
[393803253,1763007032782,-818.92665692,0.00017996,2]
[393803254,1763007032791,-818.92665692,0.00017996,2]
[393803255,1763007032800,-818.92665692,0.00017996,2]
[393803256,1763007032810,-818.92665692,0.00017996,2]
[393803257,1763007032819,-818.92665692,0.00017996,2]
[393803258,1763007032830,-818.92665692,0.00017996,2]
[393803259,1763007032839,-818.92665692,0.00017996,2]
[393803260,1763007032849,-818.92665692,0.00017996,2]
[393803261,1763007032858,-818.92665692,0.00017996,2]
[393803262,1763007032868,-818.92665692,0.00017996,2]
[393803263,1763007032877,-818.92665692,0.00017996,2]
[393803264,1763007032886,-818.92665692,0.00017996,2]
[393803265,1763007032895,-818.92665692,0.00017996,2]
[393803266,1763007032904,-818.92665692,0.00017996,2]
[393803267,1763007032914,-818.92665692,0.00017996,2]
[393803268,1763007032923,-818.92665692,0.00017996,2]
[393803269,1763007032932,-818.92665692,0.00017996,2]
[393803270,1763007032941,-818.92665692,0.00017996,2]
[393803271,1763007032951,-818.92665692,0.00017996,2]
[393803272,1763007032960,-818.92665692,0.00017996,2]
[393803273,1763007032970,-818.92665692,0.00017996,2]
[393803274,1763007032980,-818.92665692,0.00017996,2]
[393803275,1763007032997,-818.92665692,0.00017996,2]
[393803276,1763007033009,-818.92665692,0.00017996,2]
[393803277,1763007033018,-818.92665692,0.00017996,2]
[393803278,1763007033028,-818.92665692,0.00017996,2]
[393803279,1763007033038,-818.92665692,0.00017996,2]
[393803280,1763007033048,-818.92665692,0.00017996,2]
[393803281,1763007033058,-818.92665692,0.00017996,2]
[393803282,1763007033068,-818.92665692,0.00017996,2]
[393803283,1763007033079,-818.92665692,0.00017996,2]
[393803284,1763007033089,-818.92665692,0.00017996,2]
[393803285,1763007033099,-818.92665692,0.00017996,2]
[393803286,1763007033108,-818.92665692,0.00017996,2]
[393803287,1763007033119,-818.92665692,0.00017996,2]
[393803288,1763007033128,-818.92665692,0.00017996,2]
[393803289,1763007033137,-818.92665692,0.00017996,2]
[393803290,1763007033147,-818.92665692,0.00017996,2]
[393803291,1763007033156,-818.92665692,0.00017996,2]
[393803292,1763007033166,-818.92665692,0.00017996,2]
[393803293,1763007033176,-818.92665692,0.00017996,2]
[393803294,1763007033185,-818.92665692,0.00017996,2]
[393803295,1763007033195,-2586.61973784,0.00017996,2]
[393803296,1763007033204,-2586.61973784,0.00017996,2]
[393803297,1763007033214,-2586.61973784,0.00017996,2]
[393803298,1763007033223,-2586.61973784,0.00017996,2]
[393803299,1763007033233,-2586.61973784,0.00017996,2]
[393803300,1763007033243,-2586.61973784,0.00017996,2]
[393803301,1763007033252,-2586.61973784,0.00017996,2]
[393803302,1763007033261,-2586.61973784,0.00017996,2]
[393803303,1763007033271,-2586.61973784,0.00017996,2]
[393803304,1763007033280,-2586.61973784,0.00017996,2]
[393803305,1763007033289,-2586.61973784,0.00017996,2]
[393803306,1763007033299,-2586.61973784,0.00017996,2]
[393803307,1763007033308,-2586.61973784,0.00017996,2]
[393803308,1763007033317,-2586.61973784,0.00017996,2]
[393803309,1763007033326,-2586.61973784,0.00017996,2]
[393803310,1763007033336,-2586.61973784,0.00017996,2]
[393803311,1763007033345,-2586.61973784,0.00017996,2]
[393803312,1763007033355,-2586.61973784,0.00017996,2]
[393803313,1763007033364,-2586.61973784,0.00017996,2]
[393803314,1763007033373,-2586.61973784,0.00017996,2]
[393803315,1763007033383,-2586.61973784,0.00017996,2]
[393803316,1763007033392,-2586.61973784,0.00017996,2]
[393803317,1763007033403,-2586.61973784,0.00017996,2]
[393803318,1763007033414,-2586.61973784,0.00017996,2]
[393803319,1763007033424,-2586.61973784,0.00017996,2]
[393803320,1763007033433,-2586.61973784,0.00017996,2]
[393803321,1763007033442,-2586.61973784,0.00017996,2]
[393803322,1763007033452,-2586.61973784,0.00017996,2]
[393803323,1763007033461,-2586.61973784,0.00017996,2]
[393803324,1763007033471,-2586.61973784,0.00017996,2]
[393803325,1763007033480,-2586.61973798,0.00017996,2]
[393803326,1763007033489,-23595.63934885,0.00017997,2]
[393803327,1763007033503,-1368.79074071,0.00017997,2]
[393803328,1763007033514,-612.54757404,0.00017997,2]
[393803329,1763007033525,-688.72,0.00017997,2]
[393803330,1763007033544,-748.14212609,0.00017997,2]
[393803331,1763007033598,-454.9276565,0.00017997,2]
[393803332,1763007033609,-490.123999,0.00017997,2]
[393803333,1763007037886,-587.220008,0.00017997,2]
[393803335,1763007037898,-252.251498,0.00017997,2]
[393803336,1763007037993,-484.06150241,0.00017997,2]
[393803375,1763007040175,-787.63917134,0.00017997,2]
[393803376,1763007040187,-450.51165785,0.00017997,2]
[393803377,1763007040198,-7410.88977084,0.00017997,2]
[393803378,1763007040218,-352.68655211,0.00017997,2]
[393803379,1763007040229,-8767.203264,0.00017997,2]
[393803380,1763007040240,-8947.21879473,0.00017997,2]
[393803381,1763007040252,-8943.78386462,0.00017997,2]
[393803382,1763007040263,-9077.54866152,0.00017997,2]
[393803383,1763007040274,-8943.84023489,0.00017997,2]
[393803403,1763007043025,-104204.7749982,0.00017997,2]
[393803404,1763007043034,-112742.53454279,0.00017997,2]
[393803409,1763007046120,-285.1563185,0.00017997,2]
[393803410,1763007046131,-1810.94024361,0.00017997,2]
[393803411,1763007046142,-9927.36694705,0.00017997,2]
[393803412,1763007046153,-36627.71229551,0.00017997,2]
[393803447,1763007067643,9000.01,7.945e-05,2]
[393803448,1763007067665,59.469363,7.945e-05,2]
[393803452,1763007469215,615.50511582,0.00040666,120]
[393803453,1763007638107,176.25,0.00013702,2]
[393803454,1763007781133,374.61,0.00013699,2]
[393803456,1763007803457,192.63188037,0.00016967,2]
[393803457,1763007804858,264.73319764,0.00016882,20]
[393803458,1763007805752,346.39064728,0.00016967,2]
[393803459,1763007834745,-250.0,0.00017,2]
[393803460,1763007858359,-444.49580121,0.00017797,2]
[393803461,1763007858381,-2178.82174,0.0001782,2]
[393803462,1763007858406,-444.4958012,0.00017847,2]
[393803463,1763007858428,-330.06432341,0.0001786,2]
[393803464,1763007858449,-1200.0,0.00017896,2]
[393803465,1763007858471,-1200.0,0.00017897,2]
[393803466,1763007858493,-444.4958012,0.00017897,2]
[393803467,1763007858515,-527.47790234,0.00017897,2]
[393803468,1763007858539,-4980.14863064,0.00017897,2]
[393803469,1763007917651,-3269.3417884,0.00017897,2]
[393803470,1763007917674,-550.0,0.00017899,2]
[393803471,1763007917698,-300.0,0.00017899,2]
[393803472,1763007917722,-300.0,0.00017899,2]
[393803473,1763007917746,-1200.0,0.00017899,2]
[393803474,1763007917770,-4380.6582116,0.000179,2]
[393803475,1763007996887,1793.74,0.00016438,2]
[393803476,1763008007409,300.0,0.0003,120]
[393803477,1763008014822,5000.00079823,0.000162,5]
[393803484,1763008064168,500.0,0.0003,120]
[393803488,1763008081601,300.0,0.00016999,2]
[393803494,1763008110119,300.15829632,0.00040697,120]
[393803495,1763008112152,500.0,0.00016999,2]
[393803496,1763008112193,500.0,0.00016999,2]
[393803497,1763008112232,500.0,0.00016999,2]
[393803498,1763008112270,414.79311714,0.00016999,2]
[393803499,1763008112303,500.0,0.00016999,2]
[393803500,1763008112336,500.0,0.00016999,2]
[393803501,1763008112394,500.0,0.00016999,2]
[393803502,1763008112424,500.0,0.00016999,2]
[393803503,1763008112455,500.0,0.00016999,2]
[393803504,1763008112487,500.0,0.00016999,2]
[393803505,1763008112517,500.0,0.00016999,2]
[393803506,1763008112563,500.0,0.00016999,2]
[393803507,1763008112604,500.0,0.00016999,2]
[393803508,1763008112634,500.0,0.00016999,2]
[393803509,1763008112695,500.0,0.00016999,2]
[393803510,1763008112748,500.0,0.00016999,2]
[393803511,1763008112782,500.0,0.00016999,2]
[393803512,1763008112819,500.0,0.00016999,2]
[393803513,1763008112870,500.0,0.00016999,2]
[393803514,1763008113295,500.0,0.00016999,2]
[393803515,1763008113327,85.21688286,0.00016999,2]
[393803516,1763008113353,414.78311714,0.00016999,2]
[393803517,1763008113388,500.0,0.00016999,2]
[393803518,1763008113418,500.0,0.00016999,2]
[393803519,1763008113462,500.0,0.00016999,2]
[393803520,1763008113496,500.0,0.00016999,2]
[393803521,1763008113527,500.0,0.00016999,2]
[393803522,1763008113565,500.0,0.00016999,2]
[393803523,1763008122760,500.0,0.00016999,2]
[393803556,1763008181944,1054.95580468,0.000169,2]
[393803557,1763008183550,150.3854906,0.000169,2]
[393803558,1763008188424,150.0,0.00016974,2]
[393803559,1763008201334,271.08281761,0.000169,2]
[393803560,1763008201598,1200.0,0.00016999,2]
[393803561,1763008201734,300.0,0.00016999,2]
[393803562,1763008201761,474.0,0.00016999,2]
[393803563,1763008209806,163.75,0.0001699,2]
[393803564,1763008218617,2321.05276997,0.00016982,2]
[393803565,1763008218640,10000.01,0.00016982,2]
[393803566,1763008218662,10000.01,0.00016982,2]
[393803567,1763008218684,10000.01,0.00016982,2]
[393803568,1763008218706,3721.56723003,0.00016982,2]
[393803569,1763008222091,195.30818763,0.0001699,2]
[393803570,1763008225207,163.75,0.0001699,2]
[393803593,1763008232125,-5993.37204896,0.00017,2]
[393803595,1763008232241,-1000.0,0.00017,2]
[393803596,1763008232307,-12182.51844665,0.00017,2]
[393803597,1763008232320,-188451.13084931,0.00017,2]
[393803598,1763008232331,-33507.5627536,0.00017,2]
[393803599,1763008232343,-121579.29089491,0.00017,2]
[393803600,1763008232355,-32855.91385272,0.00017,2]
[393803601,1763008232367,-950.06454241,0.00017,2]
[393803602,1763008232379,-8128.45946656,0.00017,2]
[393803603,1763008232390,-743.9947211,0.00017,2]
[393803636,1763008238008,-277.595,0.00017,2]
[393803637,1763008238134,-294.75802627,0.00017,2]
[393803638,1763008238174,-25708.63542138,0.00017,2]
[393803639,1763008238232,-575.31038741,0.00017,2]
[393803658,1763008240116,-1881.13027418,0.00017,2]
[393803659,1763008240173,-112445.11356993,0.00017,2]
[393803660,1763008240230,-2054.8928756,0.00017,2]
[393803661,1763008240393,-314.123928,0.00017,2]
[393803674,1763008243198,-707.35939619,0.00017,2]
[393803675,1763008243308,-3525.98243845,0.00017,2]
[393803676,1763008243365,-589.34105002,0.00017,2]
[393803677,1763008243580,-658885.99726419,0.00017,2]
[393803679,1763008243590,-220.85198777,0.00017,2]
[393803681,1763008243599,-169.00794124,0.000171,2]
[393803683,1763008243609,-250.0,0.000172,2]
[393803685,1763008243618,-300.0,0.000174,6]
[393803687,1763008243627,-600.0,0.000175,6]
[393803689,1763008243637,-664.0,0.00017565,2]
[393803691,1763008243646,-1000.0,0.000176,6]
[393803693,1763008243655,-1300.0,0.000177,6]
[393803695,1763008243664,-1600.0,0.000178,6]
[393803698,1763008243675,-170.113,0.00017868,2]
[393803701,1763008243683,-300.0,0.000179,6]
[393803704,1763008243692,-35434.00480042,0.000179,2]
[393803706,1763008243701,-1230.57124315,0.000179,2]
[393803707,1763008243710,-249.10905635,0.000179,2]
[393803708,1763008243719,-35434.00480035,0.00017903,2]
[393803709,1763008243729,-35434.00480035,0.00017906,2]
[393803710,1763008243739,-35434.00480035,0.00017909,2]
[393803711,1763008243749,-35434.00480035,0.00017912,2]
[393803712,1763008243759,-35434.00480035,0.00017914,2]
[393803713,1763008243768,-151.0,0.00017915,2]
[393803714,1763008243778,-35434.00480035,0.00017917,2]
[393803715,1763008243787,-35434.00480035,0.0001792,2]
[393803716,1763008243797,-35434.00480035,0.00017923,2]
[393803717,1763008243808,-35434.00480035,0.00017926,2]
[393803718,1763008243818,-195.30818763,0.0001799,2]
[393803719,1763008243828,-195.30818763,0.0001799,2]
[393803720,1763008243837,-400.0,0.00017995,2]
[393803721,1763008243847,-900.408,0.00017996,2]
[393803722,1763008243856,-131388.47272504,0.00017997,2]
[393803723,1763008243865,-12599.107426,0.00017997,2]
[393803724,1763008243874,-1924.8855498,0.00017997,2]
[393803725,1763008243883,-7426.4213466,0.00017997,2]
[393803726,1763008243893,-500.0,0.00017999,2]
[393803727,1763008243903,-562.30427097,0.00017999,2]
[393803728,1763008243912,-505.31022957,0.00017999,2]
[393803729,1763008243922,-500.0,0.00017999,2]
[393803730,1763008243931,-381.36604537,0.00017999,2]
[393803731,1763008243940,-507.13,0.00017999,2]
[393803732,1763008243950,-500.0,0.00017999,2]
[393803733,1763008243959,-295.45518184,0.00017999,2]
[393803734,1763008243968,-500.0,0.00017999,2]
[393803735,1763008243978,-150.0,0.00017999,2]
[393803736,1763008243988,-500.0,0.00017999,2]
[393803737,1763008243997,-150.0,0.00017999,2]
[393803738,1763008244007,-150.0,0.00017999,2]
[393803739,1763008244016,-150.0,0.00017999,2]
[393803740,1763008244025,-500.0,0.00017999,2]
[393803741,1763008244035,-500.0,0.00017999,2]
[393803742,1763008244045,-500.0,0.00017999,2]
[393803743,1763008244055,-500.0,0.00017999,2]
[393803744,1763008244066,-150.0,0.00017999,2]
[393803745,1763008244078,-150.0,0.00017999,2]
[393803746,1763008244088,-500.0,0.00017999,2]
[393803747,1763008244097,-500.0,0.00017999,2]
[393803748,1763008244107,-500.0,0.00017999,2]
[393803749,1763008244117,-150.0,0.00017999,2]
[393803750,1763008244127,-500.0,0.00017999,2]
[393803751,1763008244136,-995.0,0.00017999,2]
[393803752,1763008244148,-500.0,0.00017999,2]
[393803753,1763008244157,-150.0,0.00017999,2]
[393803754,1763008244167,-538.21594744,0.00017999,2]
[393803755,1763008244176,-500.0,0.00017999,2]
[393803756,1763008244186,-500.0,0.00017999,2]
[393803757,1763008244195,-500.0,0.00017999,2]
[393803758,1763008244205,-437.74313007,0.00017999,2]
[393803759,1763008244214,-630.23330372,0.00017999,2]
[393803760,1763008244224,-500.0,0.00017999,2]
[393803761,1763008244233,-500.0,0.00017999,2]
[393803762,1763008244242,-500.0,0.00017999,2]
[393803763,1763008244251,-500.0,0.00017999,2]
[393803764,1763008244260,-500.0,0.00017999,2]
[393803765,1763008244271,-500.0,0.00017999,2]
[393803766,1763008244281,-255.83721069,0.00017999,2]
[393803767,1763008244291,-500.0,0.00017999,2]
[393803768,1763008244301,-354.73397016,0.00017999,2]
[393803769,1763008244310,-155.58,0.00018,2]
[393803770,1763008244319,-760457.44666533,0.00018,2]
[393803771,1763008244329,-151.0,0.00018,2]
[393803772,1763008244339,-151.0,0.00018,2]
[393803773,1763008244348,-151.79830829,0.00018,2]
[393803774,1763008244360,-6719094.90734211,0.00018,2]